[Event "24th Bosnjaci Open 2019"]
[Site "Bosnjaci"]
[Date "2019.01.05"]
[Round "4.17"]
[White "Klasan, Elvis"]
[Black "Boban, Sten"]
[Result "0-1"]
[ECO "C46"]
[WhiteElo "1861"]
[BlackElo "2105"]
[Annotator "NA"]
[PlyCount "46"]
[EventDate "2019.01.03"]
[EventType "swiss"]
[EventCountry "CRO"]
[SourceTitle "playchess.com"]
[Source "ChessBase"]
[SourceQuality "1"]
[TimeControl "5400+30"]

1. e4 {[%emt 0:00:30]} e5 {[%emt 0:01:30]} 2. Nf3 {[%emt 0:00:30]} Nc6 {[%emt 0:00:00]} 3. Nc3 {[%emt 0:00:30]} Bc5 {[%emt 0:04:00]} 4. d3 {[%emt 0:01:30]} d6 {[%emt 0:00:00]} 5. Be3 {[%emt 0:04:30]} Bb6 {[%emt 0:00:00]} 6. Nd5 {[%emt 0:03:30]} Nge7 {[%emt 0:08:30]} 7. Nxb6 {[%emt 0:01:30]} axb6 {[%emt 0:00:30]} 8. d4 {[%emt 0:04:30]} exd4 {[%emt 0:00:00]} 9. Nxd4 {[%emt 0:00:30]} O-O {[%emt 0:01:00]} 10. Be2 {[%emt 0:05:30]} f5 {[%emt 0:01:30]} 11. Nxc6 {[%emt 0:04:30]} bxc6 {[%emt 0:00:30]} 12. exf5 {[%emt 0:12:30]} Nxf5 {[%emt 0:01:30]} 13. Bc1 {[%emt 0:29:30]} Qf6 {[%emt 0:07:30]} 14. O-O {[%emt 0:01:30]} Be6 {[%emt 0:01:30]} 15. a3 {[%emt 0:03:30]} Nd4 {[%emt 0:10:30]} 16. Bd3 {[%emt 0:02:30]} Bd5 {[%emt 0:00:30]} 17. Be3 {[%emt 0:07:56]} Nf3+ {[%emt 0:03:30]} 18. Kh1 {[%emt 0:05:34]} Qe5 {[%emt 0:01:30]} 19. gxf3 {[%emt 0:00:32]} Bxf3+ {[%emt 0:00:30]} 20. Qxf3 {[%emt 0:00:11]} Rxf3 {[%emt 0:00:30]} 21. Kg2 {[%emt 0:04:06]} Raf8 {[%emt 0:03:30]} 22. Be2 {[%emt 0:02:51]} Qe4 {[%emt 0:13:30]} 23. Bd3 {[%emt 0:00:26]} Rxf2+ {[%emt 0:00:00]} 0-1

[Event "24th Bosnjaci Open 2019"]
[Site "Bosnjaci"]
[Date "2019.01.05"]
[Round "4.18"]
[White "Novosad, Ivan"]
[Black "Ascic, Anto"]
[Result "0-1"]
[ECO "D52"]
[WhiteElo "1840"]
[BlackElo "2093"]
[Annotator "NA"]
[PlyCount "70"]
[EventDate "2019.01.03"]
[EventType "swiss"]
[EventCountry "CRO"]
[SourceTitle "playchess.com"]
[Source "ChessBase"]
[SourceQuality "1"]
[TimeControl "5400+30"]

1. d4 {[%emt 0:03:30]} Nf6 {[%emt 0:00:30]} 2. c4 {[%emt 0:00:30]} e6 {[%emt 0:00:00]} 3. Nc3 {[%emt 0:00:30]} d5 {[%emt 0:00:00]} 4. Bg5 {[%emt 0:00:30]} Nbd7 {[%emt 0:00:30]} 5. Nf3 {[%emt 0:00:30]} c6 {[%emt 0:00:00]} 6. e3 {[%emt 0:00:00]} Qa5 {[%emt 0:00:00]} 7. a3 {[%emt 0:08:00]} Ne4 {[%emt 0:00:30]} 8. Rc1 {[%emt 0:02:30]} Nxc3 {[%emt 0:00:30]} 9. Rxc3 {[%emt 0:00:00]} Bxa3 {[%emt 0:00:30]} 10. Nd2 {[%emt 0:07:00]} Bxb2 {[%emt 0:02:30]} 11. Rb3 {[%emt 0:00:30]} Bc3 {[%emt 0:00:30]} 12. c5 {[%emt 0:01:30]} b6 {[%emt 0:00:30]} 13. cxb6 {[%emt 0:01:30]} axb6 {[%emt 0:00:30]} 14. Qc2 {[%emt 0:00:00]} Bxd2+ {[%emt 0:00:30]} 15. Qxd2 {[%emt 0:02:00]} Qa1+ {[%emt 0:01:30]} 16. Qd1 {[%emt 0:00:30]} Qxd1+ {[%emt 0:00:30]} 17. Kxd1 {[%emt 0:00:00]} Ra1+ {[%emt 0:00:30]} 18. Kc2 {[%emt 0:00:00]} Ba6 {[%emt 0:00:30]} 19. Rb1 {[%emt 0:04:30]} Rxb1 {[%emt 0:00:30]} 20. Kxb1 {[%emt 0:00:30]} Bxf1 {[%emt 0:00:30]} 21. Rxf1 {[%emt 0:00:00]} f6 {[%emt 0:00:00]} 22. Bh4 {[%emt 0:00:00]} Ke7 {[%emt 0:00:00]} 23. Rc1 {[%emt 0:00:30]} c5 {[%emt 0:00:30]} 24. Bg3 {[%emt 0:00:30]} e5 {[%emt 0:01:30]} 25. f4 {[%emt 0:01:30]} exd4 {[%emt 0:01:30]} 26. exd4 {[%emt 0:00:30]} f5 {[%emt 0:00:30]} 27. Bh4+ {[%emt 0:01:30]} Kf7 {[%emt 0:00:30]} 28. Kc2 {[%emt 0:00:30]} Ra8 {[%emt 0:00:30]} 29. Re1 {[%emt 0:00:30]} Nf6 {[%emt 0:05:30]} 30. dxc5 {[%emt 0:15:30]} bxc5 {[%emt 0:01:30]} 31. Kb3 {[%emt 0:00:30]} Ne4 {[%emt 0:00:30]} 32. h3 {[%emt 0:02:30]} c4+ {[%emt 0:01:30]} 33. Kb2 {[%emt 0:00:00]} d4 {[%emt 0:00:30]} 34. Rd1 {[%emt 0:02:00]} d3 {[%emt 0:04:30]} 35. Be1 {[%emt 0:00:30]} c3+ {[%emt 0:00:30]} 0-1

[Event "24th Bosnjaci Open 2019"]
[Site "Bosnjaci"]
[Date "2019.01.05"]
[Round "4.19"]
[White "Egerc, Josip"]
[Black "Krso, Enver"]
[Result "1-0"]
[ECO "C41"]
[WhiteElo "2081"]
[BlackElo "1840"]
[Annotator "NA"]
[PlyCount "57"]
[EventDate "2019.01.03"]
[EventType "swiss"]
[EventCountry "CRO"]
[SourceTitle "playchess.com"]
[Source "ChessBase"]
[SourceQuality "1"]
[TimeControl "5400+30"]

1. e4 {[%emt 0:11:30]} e5 {[%emt 0:00:30]} 2. Nf3 {[%emt 0:00:30]} d6 {[%emt 0:00:30]} 3. d4 {[%emt 0:00:30]} exd4 {[%emt 0:00:30]} 4. Nxd4 {[%emt 0:00:00]} Nf6 {[%emt 0:00:30]} 5. Nc3 {[%emt 0:01:00]} Be7 {[%emt 0:00:30]} 6. Bd3 {[%emt 0:01:30]} Bg4 {[%emt 0:00:30]} 7. f3 {[%emt 0:00:30]} Bh5 {[%emt 0:00:30]} 8. Be3 {[%emt 0:00:00]} O-O {[%emt 0:00:30]} 9. Qd2 {[%emt 0:00:00]} Nc6 {[%emt 0:00:30]} 10. Nf5 {[%emt 0:01:30]} Bg6 {[%emt 0:01:30]} 11. O-O-O {[%emt 0:00:30]} Ne5 {[%emt 0:01:30]} 12. Qf2 {[%emt 0:01:30]} Nxd3+ {[%emt 0:01:30]} 13. Rxd3 {[%emt 0:00:30]} Qd7 {[%emt 0:00:30]} 14. Nxe7+ {[%emt 0:00:30]} Qxe7 {[%emt 0:00:30]} 15. g4 {[%emt 0:00:30]} c5 {[%emt 0:01:30]} 16. h4 {[%emt 0:00:30]} h5 {[%emt 0:01:30]} 17. Bg5 {[%emt 0:01:30]} Qe6 {[%emt 0:00:30]} 18. Bxf6 {[%emt 0:00:30]} Qxf6 {[%emt 0:00:30]} 19. Qg3 {[%emt 0:01:30]} Rfd8 {[%emt 0:01:30]} 20. gxh5 {[%emt 0:01:30]} Bxh5 {[%emt 0:00:30]} 21. Rd5 {[%emt 0:00:30]} Qh6+ {[%emt 0:00:30]} 22. Kb1 {[%emt 0:00:00]} f6 {[%emt 0:01:30]} 23. Rhd1 {[%emt 0:01:00]} b5 {[%emt 0:02:30]} 24. Nxb5 {[%emt 0:00:30]} Rab8 {[%emt 0:00:30]} 25. Nxd6 {[%emt 0:00:00]} Qe3 {[%emt 0:02:30]} 26. Nf5 {[%emt 0:00:00]} Rxb2+ {[%emt 0:00:30]} 27. Ka1 {[%emt 0:00:30]} Rb1+ {[%emt 0:03:30]} 28. Rxb1 {[%emt 0:00:30]} Qc3+ {[%emt 0:00:30]} 29. Rb2 {[%emt 0:00:30]} 1-0

[Event "24th Bosnjaci Open 2019"]
[Site "Bosnjaci"]
[Date "2019.01.05"]
[Round "4.20"]
[White "Mutapcic, Ilija"]
[Black "Ivekovic, Tihana"]
[Result "0-1"]
[ECO "D02"]
[WhiteElo "1836"]
[BlackElo "2071"]
[Annotator "NA"]
[PlyCount "100"]
[EventDate "2019.01.03"]
[EventType "swiss"]
[EventCountry "CRO"]
[SourceTitle "playchess.com"]
[Source "ChessBase"]
[SourceQuality "1"]
[TimeControl "5400+30"]

1. d4 {[%emt 0:03:30]} d5 {[%emt 0:00:30]} 2. Nf3 {[%emt 0:00:30]} Nf6 {[%emt 0:00:00]} 3. Bf4 {[%emt 0:00:00]} c5 {[%emt 0:00:00]} 4. e3 {[%emt 0:00:00]} Nc6 {[%emt 0:00:00]} 5. c3 {[%emt 0:00:30]} Qb6 {[%emt 0:00:00]} 6. b3 {[%emt 0:00:30]} Bg4 {[%emt 0:06:30]} 7. Be2 {[%emt 0:03:30]} e6 {[%emt 0:01:30]} 8. O-O {[%emt 0:00:30]} Be7 {[%emt 0:00:30]} 9. Nbd2 {[%emt 0:00:30]} O-O {[%emt 0:00:30]} 10. h3 {[%emt 0:00:30]} Bh5 {[%emt 0:00:30]} 11. a4 {[%emt 0:00:30]} cxd4 {[%emt 0:05:30]} 12. exd4 {[%emt 0:02:30]} Rac8 {[%emt 0:02:30]} 13. b4 {[%emt 0:03:30]} Qd8 {[%emt 0:00:30]} 14. Rc1 {[%emt 0:05:30]} Bg6 {[%emt 0:17:30]} 15. a5 {[%emt 0:02:30]} Ne4 {[%emt 0:06:30]} 16. Re1 {[%emt 0:01:30]} Bd6 {[%emt 0:05:30]} 17. Bxd6 {[%emt 0:04:30]} Qxd6 {[%emt 0:01:30]} 18. Nb3 {[%emt 0:00:30]} b6 {[%emt 0:00:30]} 19. axb6 {[%emt 0:03:30]} axb6 {[%emt 0:00:30]} 20. Bd3 {[%emt 0:01:30]} Qe7 {[%emt 0:08:30]} 21. Bxe4 {[%emt 0:03:30]} Bxe4 {[%emt 0:00:30]} 22. Nbd2 {[%emt 0:01:30]} Bg6 {[%emt 0:01:30]} 23. Ne5 {[%emt 0:00:30]} Nxe5 {[%emt 0:06:30]} 24. dxe5 {[%emt 0:00:30]} Rc7 {[%emt 0:00:30]} 25. Nf3 {[%emt 0:02:30]} Rfc8 {[%emt 0:00:30]} 26. Qd2 {[%emt 0:00:30]} Rc4 {[%emt 0:05:30]} 27. Nd4 {[%emt 0:00:30]} Qe8 {[%emt 0:00:00]} 28. Qe3 {[%emt 0:01:30]} Qd7 {[%emt 0:01:00]} 29. f4 {[%emt 0:01:30]} Be4 {[%emt 0:00:30]} 30. g4 {[%emt 0:02:30]} R4c7 {[%emt 0:03:30]} 31. Rf1 {[%emt 0:01:30]} Qe8 {[%emt 0:03:30]} 32. Qg3 {[%emt 0:01:30]} Ra8 {[%emt 0:03:43]} 33. Rf2 {[%emt 0:03:30]} Rca7 {[%emt 0:00:17]} 34. Qe3 {[%emt 0:03:30]} Ra1 {[%emt 0:03:32]} 35. Kh2 {[%emt 0:01:30]} R8a2 {[%emt 0:01:07]} 36. Rxa1 {[%emt 0:02:30]} Rxa1 {[%emt 0:00:05]} 37. Nf3 {[%emt 0:04:30]} Qc6 {[%emt 0:01:06]} 38. Ng5 {[%emt 0:04:30]} Rh1+ {[%emt 0:10:58]} 39. Kg3 {[%emt 0:00:30]} Rg1+ {[%emt 0:00:11]} 40. Kh4 {[%emt 0:00:30]} h6 {[%emt 0:02:17]} 41. Nxe4 {[%emt 0:00:30]} dxe4 {[%emt 0:00:02]} 42. Rc2 {[%emt 0:03:30]} Rf1 {[%emt 0:00:42]} 43. c4 {[%emt 0:06:30]} Rf3 {[%emt 0:00:55]} 44. Qd2 {[%emt 0:05:30]} Rd3 {[%emt 0:00:23]} 45. Qe2 {[%emt 0:00:30]} Qd7 {[%emt 0:02:06]} 46. Qxe4 {[%emt 0:01:30]} Qd8+ {[%emt 0:00:08]} 47. g5 {[%emt 0:00:00]} hxg5+ {[%emt 0:00:03]} 48. Kg4 {[%emt 0:04:00]} gxf4 {[%emt 0:00:10]} 49. Rg2 {[%emt 0:06:10]} f3 {[%emt 0:00:10]} 50. Ra2 {[%emt 0:03:01]} Rd4 {[%emt 0:00:21]} 0-1

[Event "24th Bosnjaci Open 2019"]
[Site "Bosnjaci"]
[Date "2019.01.05"]
[Round "4.21"]
[White "Lesic, Krunoslav"]
[Black "Borzan, Andrej"]
[Result "0-1"]
[ECO "B09"]
[WhiteElo "2067"]
[BlackElo "1818"]
[Annotator "NA"]
[PlyCount "84"]
[EventDate "2019.01.03"]
[EventType "swiss"]
[EventCountry "CRO"]
[SourceTitle "playchess.com"]
[Source "ChessBase"]
[SourceQuality "1"]
[TimeControl "5400+30"]

1. e4 {[%emt 0:00:30]} d6 {[%emt 0:02:30]} 2. d4 {[%emt 0:00:00]} Nf6 {[%emt 0:00:00]} 3. Nc3 {[%emt 0:00:00]} g6 {[%emt 0:00:00]} 4. f4 {[%emt 0:01:30]} Bg7 {[%emt 0:00:30]} 5. Nf3 {[%emt 0:01:30]} O-O {[%emt 0:00:30]} 6. e5 {[%emt 0:00:30]} Nfd7 {[%emt 0:00:30]} 7. Be3 {[%emt 0:00:30]} c5 {[%emt 0:00:30]} 8. h4 {[%emt 0:20:30]} cxd4 {[%emt 0:01:30]} 9. Bxd4 {[%emt 0:00:30]} Nc6 {[%emt 0:00:30]} 10. exd6 {[%emt 0:09:30]} Nxd4 {[%emt 0:03:30]} 11. Nxd4 {[%emt 0:00:30]} exd6 {[%emt 0:00:00]} 12. Qd2 {[%emt 0:13:30]} Nc5 {[%emt 0:02:00]} 13. O-O-O {[%emt 0:01:30]} Bg4 {[%emt 0:02:30]} 14. Nf3 {[%emt 0:01:30]} Qa5 {[%emt 0:02:30]} 15. Bc4 {[%emt 0:04:30]} Bxc3 {[%emt 0:00:30]} 16. Qxc3 {[%emt 0:00:30]} Qxc3 {[%emt 0:00:30]} 17. bxc3 {[%emt 0:00:00]} Ne4 {[%emt 0:00:30]} 18. Rhe1 {[%emt 0:00:00]} Bf5 {[%emt 0:04:30]} 19. Nd4 {[%emt 0:01:30]} Rac8 {[%emt 0:03:30]} 20. Bb3 {[%emt 0:19:30]} Rxc3 {[%emt 0:02:30]} 21. Nxf5 {[%emt 0:00:30]} gxf5 {[%emt 0:01:30]} 22. Rd5 {[%emt 0:05:40]} Nc5 {[%emt 0:02:30]} 23. Kb2 {[%emt 0:06:20]} Rg3 {[%emt 0:00:30]} 24. Bc4 {[%emt 0:03:14]} Rxg2 {[%emt 0:04:30]} 25. Rxf5 {[%emt 0:00:17]} b5 {[%emt 0:00:30]} 26. Bf1 {[%emt 0:01:10]} Rg3 {[%emt 0:01:30]} 27. Rg5+ {[%emt 0:02:29]} Rxg5 {[%emt 0:00:30]} 28. hxg5 {[%emt 0:00:21]} Ne6 {[%emt 0:00:30]} 29. Kc3 {[%emt 0:01:57]} Rc8+ {[%emt 0:02:30]} 30. Kd2 {[%emt 0:00:25]} Rc5 {[%emt 0:00:30]} 31. Ke3 {[%emt 0:00:38]} Rxc2 {[%emt 0:00:30]} 32. Bxb5 {[%emt 0:00:41]} Rxa2 {[%emt 0:00:30]} 33. Rd1 {[%emt 0:00:47]} Ra3+ {[%emt 0:03:30]} 34. Ke4 {[%emt 0:00:19]} Rb3 {[%emt 0:00:00]} 35. Bc4 {[%emt 0:00:54]} Rb4 {[%emt 0:00:00]} 36. Rc1 {[%emt 0:00:21]} Nxf4 {[%emt 0:00:30]} 37. Kxf4 {[%emt 0:01:01]} d5 {[%emt 0:00:00]} 38. Ra1 {[%emt 0:00:44]} dxc4 {[%emt 0:00:00]} 39. Rxa7 {[%emt 0:00:09]} c3+ {[%emt 0:00:30]} 40. Kf5 {[%emt 0:01:39]} Rc4 {[%emt 0:00:30]} 41. Ra1 {[%emt 0:00:22]} c2 {[%emt 0:00:00]} 42. Rc1 {[%emt 0:00:01]} Kg7 {[%emt 0:00:00]} 0-1

[Event "24th Bosnjaci Open 2019"]
[Site "Bosnjaci"]
[Date "2019.01.05"]
[Round "4.22"]
[White "Katic, Zeljko"]
[Black "Slobodjanac, Sinisa"]
[Result "1/2-1/2"]
[ECO "B00"]
[WhiteElo "2035"]
[BlackElo "1797"]
[Annotator "NA"]
[PlyCount "94"]
[EventDate "2019.01.03"]
[EventType "swiss"]
[EventCountry "CRO"]
[SourceTitle "playchess.com"]
[Source "ChessBase"]
[SourceQuality "1"]
[TimeControl "5400+30"]

1. e4 {[%emt 0:01:30]} b6 {[%emt 0:00:30]} 2. d4 {[%emt 0:00:30]} Bb7 {[%emt 0:00:00]} 3. Nc3 {[%emt 0:07:30]} e6 {[%emt 0:00:00]} 4. a3 {[%emt 0:00:30]} Nf6 {[%emt 0:01:30]} 5. Bd3 {[%emt 0:01:30]} c5 {[%emt 0:02:30]} 6. Nf3 {[%emt 0:03:30]} cxd4 {[%emt 0:00:30]} 7. Nxd4 {[%emt 0:00:30]} Nc6 {[%emt 0:00:00]} 8. Nf3 {[%emt 0:01:30]} d6 {[%emt 0:01:00]} 9. Bg5 {[%emt 0:06:30]} Be7 {[%emt 0:00:00]} 10. Qd2 {[%emt 0:00:30]} h6 {[%emt 0:09:00]} 11. Bh4 {[%emt 0:04:30]} Nxe4 {[%emt 0:14:30]} 12. Nxe4 {[%emt 0:06:30]} Bxh4 {[%emt 0:00:30]} 13. O-O-O {[%emt 0:07:30]} Be7 {[%emt 0:00:30]} 14. Bb5 {[%emt 0:01:30]} Rc8 {[%emt 0:19:30]} 15. Nxd6+ {[%emt 0:10:30]} Bxd6 {[%emt 0:00:30]} 16. Qxd6 {[%emt 0:00:30]} Qxd6 {[%emt 0:00:30]} 17. Rxd6 {[%emt 0:00:00]} Ke7 {[%emt 0:00:00]} 18. Rhd1 {[%emt 0:00:00]} Rhd8 {[%emt 0:00:00]} 19. Bxc6 {[%emt 0:10:30]} Bxc6 {[%emt 0:00:30]} 20. Rxd8 {[%emt 0:00:30]} Rxd8 {[%emt 0:00:00]} 21. Rxd8 {[%emt 0:00:30]} Kxd8 {[%emt 0:00:00]} 22. Ne1 {[%emt 0:02:30]} Ke7 {[%emt 0:02:30]} 23. c4 {[%emt 0:01:30]} Kd6 {[%emt 0:06:30]} 24. Kd2 {[%emt 0:01:30]} g5 {[%emt 0:02:30]} 25. g3 {[%emt 0:03:30]} e5 {[%emt 0:03:30]} 26. b4 {[%emt 0:02:30]} a6 {[%emt 0:03:30]} 27. Nd3 {[%emt 0:02:30]} Ke6 {[%emt 0:02:30]} 28. Nb2 {[%emt 0:01:30]} b5 {[%emt 0:05:30]} 29. Kc3 {[%emt 0:01:30]} f5 {[%emt 0:00:30]} 30. Nd3 {[%emt 0:01:30]} bxc4 {[%emt 0:13:19]} 31. Nc5+ {[%emt 0:00:00]} Kd5 {[%emt 0:00:10]} 32. Nxa6 {[%emt 0:00:00]} f4 {[%emt 0:07:52]} 33. Nc5 {[%emt 0:04:40]} e4 {[%emt 0:00:54]} 34. a4 {[%emt 0:00:11]} h5 {[%emt 0:01:02]} 35. a5 {[%emt 0:00:25]} e3 {[%emt 0:00:32]} 36. fxe3 {[%emt 0:00:42]} fxg3 {[%emt 0:00:22]} 37. e4+ {[%emt 0:01:26]} Ke5 {[%emt 0:00:42]} 38. hxg3 {[%emt 0:00:18]} h4 {[%emt 0:00:13]} 39. Kxc4 {[%emt 0:04:45]} hxg3 {[%emt 0:03:07]} 40. Nd3+ {[%emt 0:00:45]} Kxe4 {[%emt 0:00:24]} 41. Ne1 {[%emt 0:00:03]} Ke3 {[%emt 0:02:01]} 42. b5 {[%emt 0:00:20]} g2 {[%emt 0:00:15]} 43. Nxg2+ {[%emt 0:00:41]} Bxg2 {[%emt 0:00:05]} 44. a6 {[%emt 0:00:20]} g4 {[%emt 0:00:30]} 45. Kc5 {[%emt 0:03:27]} g3 {[%emt 0:00:24]} 46. b6 {[%emt 0:00:28]} Bf3 {[%emt 0:00:34]} 47. b7 {[%emt 0:01:15]} Bxb7 {[%emt 0:00:06]} 1/2-1/2

[Event "24th Bosnjaci Open 2019"]
[Site "Bosnjaci"]
[Date "2019.01.05"]
[Round "4.23"]
[White "Antolovic, Pero"]
[Black "Jergovic, Andrija"]
[Result "0-1"]
[ECO "A03"]
[WhiteElo "1774"]
[BlackElo "2012"]
[Annotator "NA"]
[PlyCount "68"]
[EventDate "2019.01.03"]
[EventType "swiss"]
[EventCountry "CRO"]
[SourceTitle "playchess.com"]
[Source "ChessBase"]
[SourceQuality "1"]
[TimeControl "5400+30"]

1. f4 {[%emt 0:05:30]} d5 {[%emt 0:00:30]} 2. Nf3 {[%emt 0:00:30]} Nf6 {[%emt 0:00:00]} 3. d4 {[%emt 0:00:00]} g6 {[%emt 0:00:00]} 4. e3 {[%emt 0:00:00]} Bg7 {[%emt 0:00:00]} 5. c4 {[%emt 0:00:30]} c5 {[%emt 0:00:00]} 6. Nc3 {[%emt 0:02:30]} cxd4 {[%emt 0:00:30]} 7. exd4 {[%emt 0:00:30]} Nc6 {[%emt 0:02:30]} 8. cxd5 {[%emt 0:03:30]} Nxd5 {[%emt 0:00:30]} 9. Bb5 {[%emt 0:00:00]} O-O {[%emt 0:00:30]} 10. Bxc6 {[%emt 0:02:00]} bxc6 {[%emt 0:00:00]} 11. O-O {[%emt 0:00:30]} Ba6 {[%emt 0:01:00]} 12. Re1 {[%emt 0:01:30]} e6 {[%emt 0:00:00]} 13. h3 {[%emt 0:00:30]} Rb8 {[%emt 0:04:00]} 14. Nxd5 {[%emt 0:02:30]} cxd5 {[%emt 0:01:30]} 15. a3 {[%emt 0:00:30]} Bc4 {[%emt 0:01:30]} 16. b4 {[%emt 0:00:00]} a5 {[%emt 0:00:30]} 17. Bd2 {[%emt 0:00:00]} Qb6 {[%emt 0:00:30]} 18. Bc3 {[%emt 0:01:30]} axb4 {[%emt 0:00:00]} 19. Bxb4 {[%emt 0:00:00]} Rfc8 {[%emt 0:00:00]} 20. Ne5 {[%emt 0:00:00]} Bb5 {[%emt 0:00:30]} 21. Bc5 {[%emt 0:01:30]} Qc7 {[%emt 0:02:30]} 22. a4 {[%emt 0:02:30]} Ba6 {[%emt 0:00:30]} 23. Qd2 {[%emt 0:01:30]} Rb3 {[%emt 0:02:30]} 24. Ra2 {[%emt 0:00:30]} Bh6 {[%emt 0:01:30]} 25. Qf2 {[%emt 0:01:30]} Qa5 {[%emt 0:01:30]} 26. Re3 {[%emt 0:02:30]} Rb1+ {[%emt 0:01:30]} 27. Kh2 {[%emt 0:00:30]} Rf1 {[%emt 0:00:30]} 28. Rf3 {[%emt 0:12:30]} Rxf2 {[%emt 0:00:30]} 29. Rfxf2 {[%emt 0:00:00]} Bc4 {[%emt 0:01:30]} 30. Ra3 {[%emt 0:00:00]} Qe1 {[%emt 0:05:30]} 31. Ng4 {[%emt 0:03:30]} Bg7 {[%emt 0:00:30]} 32. Rff3 {[%emt 0:10:30]} h5 {[%emt 0:04:30]} 33. Ne5 {[%emt 0:00:30]} Rb8 {[%emt 0:00:30]} 34. Rae3 {[%emt 0:00:30]} Qd1 {[%emt 0:01:30]} 0-1

[Event "24th Bosnjaci Open 2019"]
[Site "Bosnjaci"]
[Date "2019.01.05"]
[Round "4.24"]
[White "Damjanovic, Stjepan"]
[Black "Caric, Mato"]
[Result "1/2-1/2"]
[ECO "B23"]
[WhiteElo "1741"]
[BlackElo "2088"]
[Annotator "NA"]
[PlyCount "59"]
[EventDate "2019.01.03"]
[EventType "swiss"]
[EventCountry "CRO"]
[SourceTitle "playchess.com"]
[Source "ChessBase"]
[SourceQuality "1"]
[TimeControl "5400+30"]

1. e4 {[%emt 0:00:30]} c5 {[%emt 0:02:30]} 2. Nc3 {[%emt 0:00:00]} d6 {[%emt 0:00:30]} 3. f4 {[%emt 0:00:00]} g6 {[%emt 0:00:30]} 4. Nf3 {[%emt 0:00:00]} Bg7 {[%emt 0:00:30]} 5. Bb5+ {[%emt 0:00:00]} Bd7 {[%emt 0:00:30]} 6. Bc4 {[%emt 0:00:30]} e6 {[%emt 0:00:30]} 7. O-O {[%emt 0:01:30]} Nc6 {[%emt 0:00:00]} 8. d3 {[%emt 0:00:30]} a6 {[%emt 0:00:00]} 9. a3 {[%emt 0:00:30]} Nge7 {[%emt 0:01:30]} 10. Be3 {[%emt 0:00:30]} Qc7 {[%emt 0:00:30]} 11. Ba2 {[%emt 0:01:30]} Rc8 {[%emt 0:01:30]} 12. d4 {[%emt 0:07:30]} cxd4 {[%emt 0:00:30]} 13. Nxd4 {[%emt 0:00:00]} O-O {[%emt 0:01:30]} 14. Qd2 {[%emt 0:02:00]} Na5 {[%emt 0:22:30]} 15. Rad1 {[%emt 0:08:30]} Nc4 {[%emt 0:09:30]} 16. Bxc4 {[%emt 0:00:30]} Qxc4 {[%emt 0:00:30]} 17. Nde2 {[%emt 0:01:30]} d5 {[%emt 0:06:30]} 18. exd5 {[%emt 0:05:30]} Nxd5 {[%emt 0:03:30]} 19. Nxd5 {[%emt 0:00:30]} exd5 {[%emt 0:00:00]} 20. c3 {[%emt 0:00:30]} Rce8 {[%emt 0:08:00]} 21. Nd4 {[%emt 0:08:30]} Re4 {[%emt 0:02:30]} 22. f5 {[%emt 0:06:30]} f6 {[%emt 0:18:13]} 23. fxg6 {[%emt 0:25:30]} hxg6 {[%emt 0:00:14]} 24. Nc2 {[%emt 0:01:30]} Ba4 {[%emt 0:02:46]} 25. Rde1 {[%emt 0:08:53]} Bxc2 {[%emt 0:01:57]} 26. Qxc2 {[%emt 0:00:07]} Rfe8 {[%emt 0:01:06]} 27. Qd2 {[%emt 0:00:30]} f5 {[%emt 0:00:40]} 28. Bf2 {[%emt 0:03:44]} Re2 {[%emt 0:07:25]} 29. Qd1 {[%emt 0:02:17]} Rxe1 {[%emt 0:04:11]} 30. Rxe1 {[%emt 0:00:11]} 1/2-1/2